Workbook

Sheet RAW
A1: MMF | D1: PM Checks
A3: "X"
A5: Undulator | B5: SN 13
A6: Date: | B6: 2009-10-08
A7: Crew: | B7: J.M., L.G.
A9: BUCK IN
A10: Far Value | B10: 0 | C10: PM1 X1
A11: Near Value | B11: 0 | C11: PM 4 X1
A12: 1st Far | B12: 29.98
A13: 1st. Near | B13: 29.989
A14: 2nd. Far | B14: 29.989
A15: 2nd Near | B15: 29.989
A16: Far Should Read | B16: =BuckIn(B10,B11,B12,B13,B14,B15) -> 29.989
A17: Near Should Read | B17: 29.989
A18: LOS | B18: 29.989
A20: Undulator
A23: 1) | B23: 2) | C23: 3) | D23: 4)
A24: 34.463 | B24: 34.455 | C24: 34.454 | D24: 34.448
A25: 1 | B25: 1 | C25: 1 | D25: 1
A26: =SUM(A24:A25) -> 35.463 | B26: =SUM(B24:B25) -> 35.455 | C26: =SUM(C24:C25) -> 35.454 | D26: =SUM(D24:D25) -> 35.448
A27: =B18 -> 29.989 | B27: =B18 -> 29.989 | C27: =B18 -> 29.989 | D27: =B18 -> 29.989
A28: =SUM(A27-A26) -> -5.474 | B28: =SUM(B27-B26) -> -5.466 | C28: =SUM(C27-C26) -> -5.465 | D28: =SUM(D27-D26) -> -5.459
A30: 5) | B30: 6) | C30: 7) | D30: 8)
A31: 24.683 | B31: 24.678 | C31: 24.67 | D31: 24.663
A32: 1 | B32: 1 | C32: 1 | D32: 1
A33: =SUM(A31:A32) -> 25.683 | B33: =SUM(B31:B32) -> 25.678 | C33: =SUM(C31:C32) -> 25.67 | D33: =SUM(D31:D32) -> 25.663
A34: =B18 -> 29.989 | B34: =B18 -> 29.989 | C34: =B18 -> 29.989 | D34: =B18 -> 29.989
A35: =SUM(A34-A33) -> 4.306 | B35: =SUM(B34-B33) -> 4.311 | C35: =SUM(C34-C33) -> 4.319 | D35: =SUM(D34-D33) -> 4.326
B38: Reference | C38: Block
A40: A) | B40: B) | C40: C) | D40: D)
A41: 36.02 | B41: 31.486 | C41: 29.728 | D41: 29.729
A42: 1 | B42: 1 | C42: 1 | D42: 1
A43: =SUM(A41:A42) -> 37.02 | B43: =SUM(B41:B42) -> 32.486 | C43: =SUM(C41:C42) -> 30.728 | D43: =SUM(D41:D42) -> 30.729
A44: =B18 -> 29.989 | B44: =B18 -> 29.989 | C44: =B18 -> 29.989 | D44: =B18 -> 29.989
A45: =SUM(A44-A43) -> -7.031 | B45: =SUM(B44-B43) -> -2.497 | C45: =SUM(C44-C43) -> -0.739 | D45: =SUM(D44-D43) -> -0.74
A51: MMF | D51: PM Checks
A53: "X"
A55: =B18 -> 29.989 | B55: LOS
A56: Undulator | B56: =B5 -> SN 13
A57: Date: | B57: =B6 -> 2009-10-08
A58: Crew: | B58: =B7 -> J.M., L.G.
B61: PM4
A63: X1) Buck In | B63: Y1) | C63: Y2)
B64: 32.586 | C64: 32.591
B65: 1 | C65: 1
B66: =SUM(B64:B65) -> 33.586 | C66: =SUM(C64:C65) -> 33.591
B67: =B18 -> 29.989 | C67: =B18 -> 29.989
A68: 0 | B68: =SUM(B67-B66) -> -3.597 | C68: =SUM(C67-C66) -> -3.602
B71: PM3
A73: X1) | B73: Y1) | C73: Y2)
A74: 30.866 | B74: 34.459 | C74: 34.462
A75: 1 | B75: 1 | C75: 1
A76: =SUM(A74:A75) -> 31.866 | B76: =SUM(B74:B75) -> 35.459 | C76: =SUM(C74:C75) -> 35.462
A77: =B18 -> 29.989 | B77: =B18 -> 29.989 | C77: =B18 -> 29.989
A78: =SUM(A77-A76) -> -1.877 | B78: =SUM(B77-B76) -> -5.47 | C78: =SUM(C77-C76) -> -5.473
B81: PM 2
A82: X1) | B82: Y1) | C82: Y2)
A83: 30.84 | B83: 34.437 | C83: 34.44
A84: 1 | B84: 1 | C84: 1
A85: =SUM(A83:A84) -> 31.84 | B85: =SUM(B83:B84) -> 35.437 | C85: =SUM(C83:C84) -> 35.44
A86: =B18 -> 29.989 | B86: =B18 -> 29.989 | C86: =B18 -> 29.989
A87: =SUM(A86-A85) -> -1.851 | B87: =SUM(B86-B85) -> -5.448 | C87: =SUM(C86-C85) -> -5.451
B90: PM1
A91: X1) Buck In | B91: Y1) | C91: Y2)
B92: 32.585 | C92: 32.583
B93: 1 | C93: 1
B94: =SUM(B92:B93) -> 33.585 | C94: =SUM(C92:C93) -> 33.583
B95: =B18 -> 29.989 | C95: =B18 -> 29.989
A96: 0 | B96: =SUM(B95-B94) -> -3.596 | C96: =SUM(C95-C94) -> -3.594
A101: MMF | D101: PM Checks
A103: "Y" | C103: PM4Y1 | D103: PM1Y1
C104: 9.757 | D104: 9.757
C105: 1 | D105: 1
A106: Undulator | B106: =B5 -> SN 13 | C106: =SUM(C104+C105) -> 10.757 | D106: =SUM(D104+D105) -> 10.757
A107: Date: | B107: =B6 -> 2009-10-08
A108: Crew: | B108: =B7 -> J.M., L.G.
C109: HI = | D109: =AVERAGE(C106,D106) -> 10.757
A111: PM4 | C111: PM3
A113: Y1) | B113: X1) | C113: Y2) | D113: X1
A114: =C104 -> 9.757 | B114: 13.363 | C114: 9.762 | D114: 13.363
A115: 1 | B115: 1 | C115: 1 | D115: 1
A116: =SUM(A114:A115) -> 10.757 | B116: =SUM(B114:B115) -> 14.363 | C116: =SUM(C114:C115) -> 10.762 | D116: =SUM(D114:D115) -> 14.363
A117: =D109 -> 10.757 | B117: =D109 -> 10.757 | C117: =D109 -> 10.757 | D117: =D109 -> 10.757
A118: =SUM(A117-A116) -> 0 | B118: =SUM(B117-B116) -> -3.606 | C118: =SUM(C117-C116) -> -0.005 | D118: =SUM(D117-D116) -> -3.606
A121: PM2 | C121: PM1
A123: Y1) | B123: X1) | C123: Y1) | D123: X1)
A124: 9.758 | B124: 13.36 | C124: =D104 -> 9.757 | D124: 13.361
A125: 1 | B125: 1 | C125: 1 | D125: 1
A126: =SUM(A124:A125) -> 10.758 | B126: =SUM(B124:B125) -> 14.36 | C126: =SUM(C124:C125) -> 10.757 | D126: =SUM(D124:D125) -> 14.361
A127: =D109 -> 10.757 | B127: =D109 -> 10.757 | C127: =D109 -> 10.757 | D127: =D109 -> 10.757
A128: =SUM(A127-A126) -> -0.001 | B128: =SUM(B127-B126) -> -3.603 | C128: =SUM(C127-C126) -> 0 | D128: =SUM(D127-D126) -> -3.604
A135: Top Of Gage Block | C135: Probe Location in (X)
A137: 15.157 | C137: -5.47 | D137: LOS
A138: =D109 -> 10.757 | C138: 0.024 | D138: Mic To Plus Edge
A139: =SUM(A138-A137) -> -4.4 | C139: =SUM(C137+C138) -> -5.446
C140: -0.039
C141: =(C139+C140) -> -5.485 | D141: Probe Location
A151: MMF | D151: PM Checks
A153: "Y"
A155: Undulator | B155: =B5 -> SN 13
A156: Date: | B156: =B6 -> 2009-10-08
A157: Crew: | B157: =B7 -> J.M., L.G.
A160: HI = | B160: =D109 -> 10.757
A162: Undulator
A164: 1) | B164: 2) | C164: 3) | D164: 4)
A165: 6.27 | B165: 6.27 | C165: 6.275 | D165: 6.27
A166: 1 | B166: 1 | C166: 1 | D166: 1
A167: =SUM(A165:A166) -> 7.27 | B167: =SUM(B165:B166) -> 7.27 | C167: =SUM(C165:C166) -> 7.275 | D167: =SUM(D165:D166) -> 7.27
A168: =D109 -> 10.757 | B168: =D109 -> 10.757 | C168: =D109 -> 10.757 | D168: =D109 -> 10.757
A169: =SUM(A168-A167) -> 3.487 | B169: =SUM(B168-B167) -> 3.487 | C169: =SUM(C168-C167) -> 3.482 | D169: =SUM(D168-D167) -> 3.487
A172: 5) | B172: 6) | C172: 7) | D172: 8)
A173: 13.357 | B173: 13.361 | C173: 13.358 | D173: 13.363
A174: 1 | B174: 1 | C174: 1 | D174: 1
A175: =SUM(A173+A174) -> 14.357 | B175: =SUM(B173+B174) -> 14.361 | C175: =SUM(C173+C174) -> 14.358 | D175: =SUM(D173+D174) -> 14.363
A176: =D109 -> 10.757 | B176: =D109 -> 10.757 | C176: =D109 -> 10.757 | D176: =D109 -> 10.757
A177: =SUM(A176-A175) -> -3.6 | B177: =SUM(B176-B175) -> -3.604 | C177: =SUM(C176-C175) -> -3.601 | D177: =SUM(D176-D175) -> -3.606
A181: Reference Block
A183: A) | B183: B) | C183: C) | D183: D)
A184: 9.996 | C184: 12.142 | D184: 15.223
A185: 1 | C185: 1 | D185: 1
A186: =SUM(A184+A185) -> 10.996 | C186: =SUM(C184+C185) -> 13.142 | D186: =SUM(D184+D185) -> 16.223
A187: =D109 -> 10.757 | C187: =D109 -> 10.757 | D187: =D109 -> 10.757
A188: =SUM(A187-A186) -> -0.239 | B188: 0 | C188: =SUM(C187-C186) -> -2.385 | D188: =SUM(D187-D186) -> -5.466
A191: Flats
A193: U/S | C193: D/S
A194: (+) | B194: (-) | C194: (+) | D194: (-)
A195: 9.042 | B195: 9.043 | C195: 9.042 | D195: 9.042
A196: =D109 -> 10.757 | B196: =D109 -> 10.757 | C196: =D109 -> 10.757 | D196: =D109 -> 10.757
A197: =SUM(A196-A195) -> 1.715 | B197: =SUM(B196-B195) -> 1.714 | C197: =SUM(C196-C195) -> 1.715 | D197: =SUM(D196-D195) -> 1.715

Sheet MMF
A2: Undulator | C2: =RAW!B5 -> SN 13
A3: Date | C3: =RAW!B6 -> 2009-10-08
A4: Crew | C4: J.M.,L.G.
A7: Undulator Values
A9: TB | B9: Y (in) | C9: Y (mm) | F9: TB | G9: X (in) | H9: X (mm)
A10: 1 | B10: =RAW!A169 -> 3.487 | C10: =B10*25.4 -> 88.5698 | F10: 5 | G10: =RAW!A35 -> 4.306 | H10: =G10*25.4 -> 109.3724
A11: 2 | B11: =RAW!B169 -> 3.487 | C11: =B11*25.4 -> 88.5698 | F11: 6 | G11: =RAW!B35 -> 4.311 | H11: =G11*25.4 -> 109.4994
A12: 3 | B12: =RAW!C169 -> 3.482 | C12: =B12*25.4 -> 88.4428 | F12: 7 | G12: =RAW!C35 -> 4.319 | H12: =G12*25.4 -> 109.7026
A13: 4 | B13: =RAW!D169 -> 3.487 | C13: =B13*25.4 -> 88.5698 | F13: 8 | G13: =RAW!D35 -> 4.326 | H13: =G13*25.4 -> 109.8804
A16: PM Values
C18: Upstream | E18: (PM 3) | G18: Checks
A19: TB | B19: X (in) | C19: Y (in) | D19: X (mm) | E19: Y (mm) | G19: X (mm) | H19: Y (mm)
A20: Y2 | B20: =RAW!C78 -> -5.473 | C20: =RAW!C118 -> -0.005 | D20: =B20*25.4 -> -139.0142 | E20: =C20*25.4 -> -0.127 | G20: =H10-D21 -> 157.0482 | H20: =C10-E20 -> 88.6968
A21: X1 | B21: =RAW!A78 -> -1.877 | C21: =RAW!D118 -> -3.606 | D21: =B21*25.4 -> -47.6758 | E21: =C21*25.4 -> -91.5924
A22: Y1 | B22: =RAW!B78 -> -5.47 | D22: =B22*25.4 -> -138.938
C24: Downstream | E24: (PM 2) | G24: Checks
A25: TB | B25: X (in) | C25: Y (in) | D25: X (mm) | E25: Y (mm) | G25: X (mm) | H25: Y (mm)
A26: Y1 | B26: =RAW!B87 -> -5.448 | C26: =RAW!A128 -> -0.001 | D26: =B26*25.4 -> -138.3792 | E26: =C26*25.4 -> -0.0254 | G26: =H13-D27 -> 156.8958 | H26: =C13-E26 -> 88.5952
A27: X1 | B27: =RAW!A87 -> -1.851 | C27: =RAW!B128 -> -3.603 | D27: =B27*25.4 -> -47.0154 | E27: =C27*25.4 -> -91.5162
A28: Y2 | B28: =RAW!C87 -> -5.451 | C28: \ | D28: =B28*25.4 -> -138.4554
B33: Probe | F33: Flats
B35: X (in) | C35: X (mm) | F35: Y(in) | G35: Y(mm)
B36: =RAW!C141 -> -5.485 | C36: =B36*25.4 -> -139.319 | E36: US + | F36: =RAW!A197 -> 1.715 | G36: =F36*25.4 -> 43.561
E37: US - | F37: =RAW!B197 -> 1.714 | G37: =F37*25.4 -> 43.5356
E38: DS + | F38: =RAW!C197 -> 1.715 | G38: =F38*25.4 -> 43.561
C39: Top of Gage Block | E39: DS - | F39: =RAW!D197 -> 1.715 | G39: =F39*25.4 -> 43.561
B41: Y (in) | C41: Y (mm)
B42: =RAW!A139 -> -4.4 | C42: =B42*25.4 -> -111.76

Sheet AEG
A2: Undulator | C2: =RAW!B5 -> SN 13
A3: Date | C3: =RAW!B6 -> 2009-10-08
A4: Crew | C4: =RAW!B7 -> J.M., L.G.
C7: Undulator Values
A9: TB | B9: X (in) | C9: Y (in) | D9: X (mm) | E9: Y (mm) | G9: Probe
A10: 1 | B10: =RAW!A28 -> -5.474 | C10: =RAW!A169 -> 3.487 | D10: =SUM(B10*25.4) -> -139.0396 | E10: =SUM(D10*25.4) -> -3531.60584
A11: 2 | B11: =RAW!B28 -> -5.466 | C11: =RAW!B169 -> 3.487 | D11: =SUM(B11*25.4) -> -138.8364 | E11: =SUM(D11*25.4) -> -3526.44456 | G11: X (in) | H11: X (mm)
A12: 3 | B12: =RAW!C28 -> -5.465 | C12: =RAW!C169 -> 3.482 | D12: -138.811 | E12: -3525.7994 | G12: =RAW!C141 -> -5.485 | H12: =SUM(G12*25.4) -> -139.319
A13: 4 | B13: =RAW!D28 -> -5.459 | C13: =RAW!D169 -> 3.487 | D13: -138.6586 | E13: -3521.92844
A14: 5 | B14: =RAW!A35 -> 4.306 | C14: =RAW!A177 -> -3.6 | D14: 109.3724 | E14: 2778.05896
A15: 6 | B15: =RAW!B35 -> 4.311 | C15: =RAW!B177 -> -3.604 | D15: 109.4994 | E15: 2781.28476 | G15: Top of Gage Block
A16: 7 | B16: =RAW!C35 -> 4.319 | C16: =RAW!C177 -> -3.601 | D16: 109.7026 | E16: 2786.44604
A17: 8 | B17: =RAW!D35 -> 4.326 | C17: =RAW!D177 -> -3.606 | D17: 109.8804 | E17: 2790.96216 | G17: Y (in) | H17: Y (mm)
G18: =RAW!A139 -> -4.4 | H18: =SUM(G18*25.4) -> -111.76
C19: Undulator PM Values
C21: Upstream | E21: (PM 3)
A22: TB | B22: X (in) | C22: Y (in) | D22: X (mm) | E22: Y (mm) | G22: Flats
A23: Y2 | B23: =RAW!A78 -> -1.877 | C23: =RAW!C118 -> -0.005 | D23: =SUM(B23*25.4) -> -47.6758 | E23: =SUM(C23*25.4) -> -0.127
A24: X1 | B24: =RAW!A78 -> -1.877 | C24: =RAW!D118 -> -3.606 | D24: =SUM(B24*25.4) -> -47.6758 | E24: =SUM(C24*25.4) -> -91.5924 | H24: Y(in) | I24: Y(mm)
A25: Y1 | B25: =RAW!B78 -> -5.47 | D25: =SUM(B25*25.4) -> -138.938 | G25: US + | H25: =RAW!A197 -> 1.715 | I25: =SUM(H25*25.4) -> 43.561
G26: US - | H26: =RAW!B197 -> 1.714 | I26: =SUM(H26*25.4) -> 43.5356
C27: Downstream | E27: (PM 2) | G27: DS + | H27: =RAW!C197 -> 1.715 | I27: =SUM(H27*25.4) -> 43.561
A28: TB | B28: X (in) | C28: Y (in) | D28: X (mm) | E28: Y (mm) | G28: DS - | H28: =RAW!D197 -> 1.715 | I28: =SUM(H28*25.4) -> 43.561
A29: Y1 | B29: =RAW!B87 -> -5.448 | C29: =RAW!A128 -> -0.001 | D29: =SUM(B29*25.4) -> -138.3792 | E29: =SUM(C29*25.4) -> -0.0254
A30: X1 | B30: =RAW!A87 -> -1.851 | C30: =RAW!B128 -> -3.603 | D30: =SUM(B30*25.4) -> -47.0154 | E30: =SUM(C30*25.4) -> -91.5162
A31: Y2 | B31: =RAW!C87 -> -5.451 | D31: =SUM(B31*25.4) -> -138.4554
C33: Ref. PM Values
C35: Upstream | E35: (PM 4)
A36: TB | B36: X (in) | C36: Y (in) | D36: X (mm) | E36: Y (mm)
A37: Y1 | B37: =RAW!B68 -> -3.597 | C37: =RAW!A118 -> 0 | D37: =SUM(B37*25.4) -> -91.3638 | E37: =SUM(C37*25.4) -> 0
A38: X1 | B38: 0 | C38: =RAW!B118 -> -3.606 | D38: 0 | E38: =SUM(C38*25.4) -> -91.5924
A39: Y2 | B39: =RAW!C68 -> -3.602 | D39: =SUM(B39*25.4) -> -91.4908
C41: Downstream | E41: (PM 1)
A42: TB | B42: X (in) | C42: Y (in) | D42: X (mm) | E42: Y (mm)
A43: Y1 | B43: =RAW!B96 -> -3.596 | C43: =RAW!C128 -> 0 | D43: =SUM(B43*25.4) -> -91.3384 | E43: =SUM(C43*25.4) -> 0
A44: X1 | B44: 0 | C44: =RAW!D128 -> -3.604 | D44: 0 | E44: =SUM(C44*25.4) -> -91.5416
A45: Y2 | B45: =RAW!C96 -> -3.594 | D45: =SUM(B45*25.4) -> -91.2876
C47: Ref. Block
A48: TB | B48: X (in) | C48: Y (in) | D48: X (mm) | E48: Y (mm)
A49: A | B49: =RAW!A45 -> -7.031 | C49: =RAW!A188 -> -0.239 | D49: =SUM(B49*25.4) -> -178.5874 | E49: =SUM(C49*25.4) -> -6.0706
A50: B | B50: =RAW!B45 -> -2.497 | D50: =SUM(B50*25.4) -> -63.4238
A51: C | B51: =RAW!C45 -> -0.739 | C51: =RAW!C188 -> -2.385 | D51: =SUM(B51*25.4) -> -18.7706 | E51: =SUM(C51*25.4) -> -60.579
A52: D | B52: =RAW!D45 -> -0.74 | C52: =RAW!D188 -> -5.466 | D52: =SUM(B52*25.4) -> -18.796 | E52: =SUM(C52*25.4) -> -138.8364
